Cogmind - Beta 9.1 @@@ ROGUE MODE // 2019.11.03 @ 11:20:35 Player: Alexbot Result: Destroyed by G-34 Mercenary with Small Laser Performance ------------- Evolutions (1) 500 Regions Visited (2) 400 Robots Destroyed (6) 30 Value Destroyed (60) 60 Prototype IDs (0) 0 Alien Tech Used (0) 0 Bonus (0) 0 TOTAL SCORE: 990 Bonus ------- None Cogmind --------- Core Integrity 0/400 Matter 193/300 Energy 98/100 System Corruption 0% Temperature Cool (12) Location -9/Materials Parts ------- Power (1) Propulsion (4) Utility (2) Disposable Heat Sink Weapon (2) Inventory (4) Light Ion Engine Light Ion Engine Flight Unit Flight Unit Peak State ------------ Power Light Ion Engine Propulsion Flight Unit Utility (None) Weapon Assault Rifle Inventory (Empty) [Rating: 3] Favorites ----------- Power Light Ion Engine Engine Light Ion Engine Propulsion Flight Unit Flight Unit Flight Unit Utility Disposable Heat Sink Device Disposable Heat Sink Weapon Assault Rifle Ballistic Gun Assault Rifle Build | -11 -10 -9 ------- Run | Scr Mat Mat Slots Evolved 2 | . . 2 Power . | . . . Propulsion 2 | . . 2 Utility . | . . . Weapon . | . . . Parts Attached 5 | 1 2 2 Power 1 | . 1 . Engine 1 | . 1 . Core . | . . . Reactor . | . . . Propulsion 1 | . 1 . Treads . | . . . Leg . | . . . Wheel . | . . . Hover . | . . . Flight 1 | . 1 . Utility 1 | . . 1 Device 1 | . . 1 Storage . | . . . Processor . | . . . Hackware . | . . . Protection . | . . . Artifact . | . . . Weapon 2 | 1 . 1 Energy Gun . | . . . Energy Cannon . | . . . Ballistic Gun 2 | 1 . 1 Ballistic Cannon . | . . . Launcher . | . . . Special Weapon . | . . . Impact Weapon . | . . . Slashing Weapon . | . . . Piercing Weapon . | . . . Special Melee Weapon . | . . . Unidentified Prototypes . | . . . Parts Lost 3 | . . 3 Power 1 | . . 1 Propulsion 1 | . . 1 Utility . | . . . Weapon 1 | . . 1 Highest Loss Streak 3 | . . 3 Average Slot Usage (%) 20 | . 26 16 Engine 7 | . 10 5 Flight 7 | . 10 5 Device 2 | . . 3 Ballistic Gun 3 | . 5 1 Naked Turns . | . . . Heaviest Build 3 | 2 3 3 Greatest Support 4 | 3 4 4 Greatest Overweight (x) . | . . . Average Overweight (x) . | . . . Largest Inventory Capacity 4 | 4 4 4 Average Capacity 4 | 4 4 4 Most Carried 4 | . 2 4 Average Carried 2 | . 1 3 Final Capacity 4 | 4 4 4 Final Carried 4 | . 2 4 Class Distribution -------------------- 100% | Mutant Dominant Class ---------------- Mutant | -10/Materials Mutant | -9/Materials Resources | -11 -10 -9 ----------- Run | Scr Mat Mat Matter Collected 165 | 128 17 20 Remotely . | . . . Salvage Created 93 | . 48 45 Parts 10 | . 5 5 Haulers Intercepted . | . . . Recyclers Shooed 1 | . . 1 Parts Field Recycled . | . . . Retrieved Matter . | . . . Parts Self-Destructed . | . . . Prevented . | . . . Kills | -11 -10 -9 ------- Run | Scr Mat Mat Combat Hostiles Destroyed 6 | . 3 3 Guns 6 | . 3 3 Classes Destroyed 1 | . 1 . Swarmer 6 | . 3 3 Best Kill Streak 3 | . 3 3 Combat Bots Only 3 | . 3 3 Max Kills in Single Turn 1 | . 1 1 Gunslinging . | . . . Exploded . | . . . Melee . | . . . Uniques/NPCs Destroyed . | . . . Combat | -11 -10 -9 -------- Run | Scr Mat Mat Damage Taken 598 | . 31 567 Core 417 | . 8 409 Absorbed by Shields . | . . . Core Remaining (%) 98 | 100 96 . Volleys Fired 13 | . 6 7 Largest 1 | . 1 1 Hottest 20 | . 20 20 Shots Fired 13 | . 6 7 Gun 13 | . 6 7 Cannon . | . . . Launcher . | . . . Special . | . . . Kinetic 13 | . 6 7 Thermal . | . . . Explosive . | . . . Electromagnetic . | . . . Robot Hit Streak 5 | . 3 5 Robot Miss Streak 1 | . 1 1 Penetration Max . | . . . Secondary Targets . | . . . Shots Hit Robots 10 | . 5 5 Core Hits 6 | . 3 3 Critical Hits . | . . . Critical Kills . | . . . Critical Parts Destroyed . | . . . Melee Attacks . | . . . Impact . | . . . Slashing . | . . . Piercing . | . . . Sneak Attacks . | . . . Combat Hostiles . | . . . Follow-up Attacks . | . . . Damage Inflicted 134 | . 66 68 Guns 128 | . 66 62 Cannons . | . . . Explosions . | . . . Melee . | . . . Ramming 6 | . . 6 Kinetic 128 | . 66 62 Thermal . | . . . Explosive . | . . . Electromagnetic . | . . . Impact . | . . . Slashing . | . . . Piercing . | . . . Highest Corruption . | . . . Average Corruption . | . . . Corruption Purged . | . . . Overload Shots . | . . . Overflow Damage . | . . . Projectiles . | . . . Explosions . | . . . Melee . | . . . Knockbacks . | . . . Impact . | . . . Kinetic . | . . . Secondary . | . . . Self-Inflicted Damage 3 | . . 3 Shots . | . . . Rammed 1 | . . 1 Targets Rammed 1 | . . 1 Kicked . | . . . Crushed . | . . . Highest Temperature . | . . . Average Temperature . | . . . Received Heat Transfer 210 | . . 210 Siege Activations . | . . . Robots Corrupted . | . . . Combat Hostiles . | . . . Parts Fried . | . . . Impact Corruptions . | . . . Robots Melted . | . . . Combat Hostiles . | . . . Parts Melted . | . . . Heat Transferred . | . . . Parts Sabotaged . | . . . Parts Stolen . | . . . Parts Stripped . | . . . Power Chain Reactions . | . . . Missiles Intercepted . | . . . Alert | -11 -10 -9 ------- Run | Scr Mat Mat Peak Influence 171 | . 79 171 Average Influence 84 | . 59 108 Maximum Alert Level . | . . . Low Security (%) 100 | . . . Level 1 . | . . . Level 2 . | . . . Level 3 . | . . . Level 4 . | . . . Level 5 . | . . . High Security . | . . . Max Security . | . . . Squads Dispatched 3 | . . 3 Investigation 1 | . . 1 Extermination . | . . . Reinforcement 2 | . . 2 Assault . | . . . Garrison . | . . . Intercept . | . . . Construction Impeded . | . . . Haulers Reinforced . | . . . Stealth | -11 -10 -9 --------- Run | Scr Mat Mat Distress Signals 1 | . . 1 Communications Jammed . | . . . Distress Signals . | . . . Times Spotted 20 | . 4 16 Peak Tracking Total 10 | . 3 10 Tactical Retreats 1 | . . 1 Traps | -11 -10 -9 ------- Run | Scr Mat Mat Traps Triggered . | . . . Indirectly . | . . . Trap Hack Attempts . | . . . Triggered . | . . . Disarmed . | . . . Reprogrammed . | . . . Reused . | . . . Traps Extracted . | . . . Installed . | . . . Triggered . | . . . Machines | -11 -10 -9 ---------- Run | Scr Mat Mat Machines Disabled . | . . . Max in Single Turn . | . . . Machines Sabotaged . | . . . Garrisons Compromised . | . . . Overloaded Fab Kills . | . . . Fab Network Shutdowns . | . . . Hacking | -11 -10 -9 --------- Run | Scr Mat Mat Machines Accessed 5 | . 1 4 Terminals 4 | . 1 3 Fabricators . | . . . Repair Stations . | . . . Recycling Units 1 | . . 1 Scanalyzers . | . . . Garrison Access . | . . . Total Hacks 12 | . 1 11 Successful 5 | . 1 4 Failed 7 | . . 7 Catastrophic 2 | . . 2 Database Lockouts . | . . . Manual 6 | . 1 5 Terminals 10 | . 1 9 Fabricators . | . . . Repair Stations . | . . . Recycling Units 2 | . . 2 Scanalyzers . | . . . Garrison Access . | . . . Terminal Hacks 3 | . 1 2 Level Access Points 1 | . 1 . Locate Traps 1 | . . 1 Zone Layout 1 | . . 1 Fabricator Hacks . | . . . Repair Station Hacks . | . . . Recycling Unit Hacks 1 | . . 1 Retrieve Components 1 | . . 1 Scanalyzer . | . . . Garrison Access Hacks . | . . . Unauthorized Hacks 2 | . . 2 Terminals 1 | . . 1 Botnet 1 | . . 1 Fabricators . | . . . Repair Stations . | . . . Recycling Units . | . . . Scanalyzers . | . . . Garrison Access . | . . . Data Cores Recovered . | . . . Used . | . . . Hacking Detections 3 | . . 3 Full Trace Events 1 | . . 1 Feedback Events . | . . . Feedback Blocked . | . . . Robot Schematics Acquired . | . . . Robots Built . | . . . Matter . | . . . Time . | . . . Total Robot Build Rating . | . . . Part Schematics Acquired . | . . . Parts Built . | . . . Matter . | . . . Time . | . . . Total Part Build Rating . | . . . Parts Repaired . | . . . Time . | . . . Parts Recycled . | . . . Recycled Matter . | . . . Retrieved Matter . | . . . Retrieved Components 3 | . . 3 Parts Scanalyzed . | . . . Part Schematics Acquired . | . . . Parts Damaged . | . . . Bothacking | -11 -10 -9 ------------ Run | Scr Mat Mat Used RIF Installer . | . . . Robots Hacked . | . . . Non-combat . | . . . Combat . | . . . Robot Hacks Applied . | . . . Relay Couplers Released . | . . . Robots Rewired . | . . . Allies Hacked . | . . . Hacks Repelled . | . . . Allies | -11 -10 -9 -------- Run | Scr Mat Mat Total Allies . | . . . Largest Group . | . . . Highest-Rated Group . | . . . Highest-Rated Ally . | . . . Total Orders . | . . . Ally Attacks . | . . . Total Damage . | . . . Kills . | . . . Allies Corrupted . | . . . Allies Melted . | . . . Intel | -11 -10 -9 ------- Run | Scr Mat Mat Robot Analysis Total . | . . . Derelict Logs Recovered . | . . . Drone Launches . | . . . Drone Recoveries . | . . . Exploration | -11 -10 -9 ------------- Run | Scr Mat Mat Turns Passed 211 | 12 78 121 Spaces Moved 392 | 21 141 230 Core 125 | 21 20 84 Treads . | . . . Legs . | . . . Wheels . | . . . Hover . | . . . Flight 267 | . 121 146 Fastest Speed 40 | 50 40 40 Average Speed 43 | 50 41 43 Slowest Speed 50 | 50 50 50 Overloaded Moves . | . . . Propulsion Burnouts . | . . . Robots Hopped 2 | . 1 1 Cave-ins Triggered . | . . . Exploration Rate (%) 23 | 4 38 29 Regions Visited 2 Branch Regions . Pre-discovered Areas . | . . . Known Exits Taken 1 | . 1 . Unknown Exits Taken 1 | 1 . . Scrap Searched . | . . . Spaces Dug . | . . . Terrain Destroyed . | . . . Melee . | . . . Projectile . | . . . AOE . | . . . Actions | -11 -10 -9 --------- Run | Scr Mat Mat Total 416 | 21 152 243 Wait 3 | . 3 . Move 386 | 20 138 228 Hop 2 | . 1 1 Pick Up 5 | . 1 4 Fast Attach 3 | 1 2 . Attach 2 | . . 2 Detach 1 | . 1 . Swap . | . . . Drop . | . . . Fire 13 | . 6 7 Melee . | . . . Ram 1 | . . 1 Kick . | . . . Crush . | . . . Escape Stasis . | . . . Rewire . | . . . Trap . | . . . Miscellaneous . | . . . Route ------- -11/Scrapyard -10/Materials (discovered 4 exits: *Mat x3 / [*Min]) -9/Materials (discovered 1 exit: [*Min]) History --------- Turn | Location | Event 5 | -11/Scrapyard | Discovered new exit (range 15) 13 | -11/Scrapyard | Entered Materials 59 | -10/Materials | Discovered new exit (range 15) 72 | -10/Materials | Identified exit to Materials 91 | -10/Materials | Entered another Materials area 91 | -9/Materials | Evolved 2 slots: Propulsion x2 131 | -9/Materials | Discovered new exit (range 13) 191 | -9/Materials | Core integrity fell below 50% 207 | -9/Materials | Lost 3 parts (1p1n1w) 208 | -9/Materials | Core integrity fell below 20% 212 | -9/Materials | Destroyed by G-34 Mercenary with Small Laser Last Messages --------------- Downloaded map data. 00135_ K-01 Serf collects debris. 00143_ Connecting with Terminal... 00143_ ALERT: Suspicious activity at Terminal M003. Dispatching Investigation squad. 00152_ S-10 Pest destroyed. 00156_ Lgt. Ion Engine destroyed. 00157_ Flight Unit destroyed. 00158_ S-10 Pest destroyed. 00160_ R-06 Scavenger collects Lgt. Ion Engine. 00165_ Acquired Lgt. Ion Engine. 00168_ Acquired Flight Unit. 00169_ Acquired 20 matter. 00171_ Acquired Flight Unit. 00173_ Slammed into G-34 Mercenary. 00176_ Assault Rifle destroyed. 00181_ ALERT: Hostiles spotted, dispatching reinforcements to Terminal M002. 00183_ G-34 Mercenary destroyed. 00193_ K-01 Serf collects debris. Map ----- +----------------------------------------------------+ | # """??????????????????# """"""" #????? | | # """??????????????????# """"""" ] #????? | | #] """ ?????????????????+ "Y"! + ???? | | # ??"T" ## """ # """ # ""?? | | ####+###? # # ############ ## """" | | #???????? ## # #?????######/#??"""? | | ?[#???????? ## # ####### ? ??? | | ??????????? ###+######## # = # ? #???#? | | ???????????#/##### # ?? ????? | | ??????????? T + """??##???? | | ??????????? ##### # """???????? | | ??????????? #???# ##### ### ! # """???????? | | ??????????? #???# #####+#### #######???????? | | ??????????? #???# ## # # ???????? | | ??????????? #???# ## !! + + ???????? | | ??????????? #???# ## ! # # """ ???????? | | ??????????? #???# ########## # """ ???????? | | ??????????? ##+#####+########## # """ ???????? | | ??????????? # ## "T" # # ???????? | | ??????????? # ## + #######???????? | | ??????????? # ## # #?# ???????? | | ??????????? # """ ########## ### "???#???? | | ??????????? # """"" ######### ## """ #???? | | ??????????? # """"" # ##! """ #???? | | ??????????? # """"" u# ## #???? | | ??????????? # """ /g @ ## """ #???? | | ??????????? # #g ##### ## """ #???? | | ??????????? #####?####k ############ """ #??## | | ???????????###???# #?# """######### #? | | ??????????? #????# #?# "# ##! #? " | | ??????????? #????# #?# !"# ######+### " | | ??????????? #????# #?# < ""# " # # " | | ??????????? #????# #?# a !"# T # + | | ??????????? #????# #?# "# " + T # *! | | ?????????????????????# """#??????# # *! | | ???????????????######## #########?# #? ! | | ???????????????# # t# =! #?# #? | | ???????????????# + / T = /#?# #??## | | ???????????????# """ # # #?# #???? | | ???????????????# """ # # #######?# ######???? | | ???????????????# """ ?# Y ###??????## ##???????? | | ???????????????# ?# ########## [ #???????? | | ???????????#########??# %* #???????? | | ???????????# ####### = #???????? | | ???????????# + #???????? | | ???????????# # ####"###/## #???????? | | ???????????# # # ###+######????? | | ???????????# / + # #????? | | ???????????# "" #+######## # % %* #????? | | ???????????# "T # ??????# # #????? | +----------------------------------------------------+ Best States ------------- Heat Dissipation 28 Coolant Potential 50 Energy Generation 10 Energy Capacity 125 Matter Stores 218 Matter Capacity 300 Sight Range 16 Terrain Scan Density 10 Evasion (%) 62 Item Schematics ----------------- None Robot Schematics ------------------ None Fabricated ------------ Nothing Alien Tech Used ----------------- None Achievements -------------- None Challenges ------------ None Game ------ Seed IntegratedMetafiberWand Manual? 0 Play Time 00:05:32 Cumulative 673.7 hours Start 2019.11.03 @ 11:17:13 End 2019.11.03 @ 11:20:35 Sessions 1 Manual Loads 0 Difficulty Rogue Special Mode None Game No. 169 Rogue 169 Adventurer 0 Explorer 0 Win Type - Total 30 Types 22/0/2/3/2/0/1 Lore% 96 Gallery% 97 Achievement% 90 Wizard Run 0 Options --------- ASCII 0 Keyboard 1 Movement Numpad Keybinds 0 Fullscreen 1 Font 18/SmallcapsGlow Map View 76x50 Tactical HUD 1 Map Filters NONE Filters NONE Steam 1 RUN: b2329ad1-b34b-4da7-9157-995c61ea3ac6